[Event "Slovakian ECo-C Extraliga 2024-25"]
[Site "Slovakia"]
[Date "2025.01.18"]
[Round "3.4"]
[White "Terbe, Julianna"]
[Black "Baidetskyi, Valentin"]
[Result "0-1"]
[Annotator "TA"]
[ECO "A46"]
[WhiteElo "2224"]
[BlackElo "2521"]
[PlyCount "108"]
[EventDate "2024.09.12"]
[EventType "team-tourn"]
[EventCountry "SVK"]
[SourceTitle "playchess.com"]
[Source "ChessBase"]
[SourceQuality "1"]
[TimeControl "5400+30"]

{[%evp 9,108,0,34,-12,-8,-6,0,0,0,-34,-23,-16,-14,-28,0,-4,-2,-3,-6,0,15,0,0,-16,-8,-7,0,0,-16,0,0,-2,0,-15,-15,-19,-10,-12,0,0,0,0,0,0,0,0,0,-4,0,-9,-8,-37,-41,-38,-45,-44,-31,-37,-25,-25,-24,-17,16,3,14,0,0,0,0,0,0,-81,-81,-81,-81,-107,-107,-107,-107,-117,-80,-81,-80,-84,-91,-265,-256,-305,-296,-495,-485,-430,-423,-366,-205,-729,-729,-907,-893,-851,-837]} 1. d4 {[%emt 0:00:07]} Nf6 {[%emt 0:00:14]} 2. Nf3 {[%emt 0:00:09]} e6 {[%emt 0:00:07]} 3. Bf4 {[%emt 0:00:07]} h6 {[%emt 0:00:13]} 4. c3 {[%emt 0:08:26]} c5 {[%emt 0:01:14]} 5. e3 {[%emt 0:02:06]} Nh5 {[%emt 0:16:49]} 6. Nbd2 $146 {[%emt 0:10:48] A46: 1 d4 Nf6 2 Nf3 e6: Torre, London and Colle Systems.} (6. d5 $14 {feels stronger.}) (6. Bg3 Nxg3 7. hxg3 d5 8. Nbd2 Nd7 9. Bd3 Be7 10. Qe2 O-O 11. O-O c4 12. Bc2 {1-0 Balog,I (2565)-Vitenberg,N (2297) Titled Tuesday intern op1 3rd March blitz 2020 (5)}) 6... Nxf4 $11 {[%emt 0:01:15]} 7. exf4 {[%emt 0:00:05]} cxd4 {[%emt 0:02:33]} 8. Nxd4 {[%emt 0:00:19] The position is equal.} Nc6 {[%emt 0:00:40]} 9. Nc4 {[%emt 0:06:00]} Qc7 {[%emt 0:13:40]} 10. g3 {[%emt 0:08:55]} d5 {[%emt 0:02:13]} 11. Ne3 {[%emt 0:01:52]} Bc5 {[%emt 0:09:47]} 12. Nb3 {[%emt 0:03:30]} Bxe3 {[%emt 0:11:03]} 13. fxe3 {[%emt 0:00:08]} Qb6 {[%emt 0:06:09]} 14. Qe2 {[%emt 0:04:22]} e5 {[%emt 0:00:55]} 15. O-O-O {[%emt 0:03:02]} Be6 {[%emt 0:01:42]} 16. fxe5 {[%emt 0:09:45]} O-O {[%emt 0:04:45] Black sacrificed a pawn} 17. e4 {[%emt 0:07:04]} Rad8 {[%emt 0:14:39]} (17... Nxe5 $2 18. exd5 Bg4 19. Qxe5 $18) 18. exd5 {[%emt 0:13:15]} Bxd5 {[%emt 0:00:18]} 19. Bg2 {[%emt 0:00:04]} Bxg2 {[%emt 0:01:44]} (19... Bxb3 20. axb3 Qxb3 21. Rd6 $14) 20. Qxg2 {[%emt 0:00:05]} Nxe5 {[%emt 0:00:18]} 21. Kb1 {[%emt 0:02:24]} Ng4 {[%emt 0:03:33] [#] Threatens to win with ...Ne3.} 22. Rxd8 {[%emt 0:07:43]} Rxd8 {[%emt 0:00:18]} 23. Nd4 {[%emt 0:00:26]} Ne5 {[%emt 0:07:17]} 24. Qe2 {[%emt 0:02:12]} Nc6 {[%emt 0:00:16]} 25. Nf5 {[%emt 0:01:53]} Qc5 {[%emt 0:00:44]} 26. Qg4 {[%emt 0:03:37][%csl Gf5][%cal Rg4g7] [#]} g6 {[%emt 0:00:25]} 27. Rf1 {[%emt 0:01:04]} Kh7 {[%emt 0:00:30]} 28. Nd4 {[%emt 0:02:03]} Qc4 {[%emt 0:00:36]} 29. Qf4 {[%emt 0:00:55]} Nxd4 {[%emt 0:00:13]} 30. cxd4 {[%emt 0:00:28][%mdl 4096] Endgame KQR-KQR} (30. Rd1 $5) 30... Qd3+ {[%emt 0:00:20]} 31. Ka1 {[%emt 0:00:06]} Rd7 {[%emt 0:00:04][%cal Ob7b5]} (31... Rxd4 32. Qxf7+ Kh8 33. Qf8+ Kh7 34. Rf7#) 32. a3 $1 {[%emt 0:01:13]} b5 {[%emt 0:00:11][%cal Oa7a5]} (32... Rxd4 33. Qxf7+ Kh8 34. Qf8+ Kh7 35. Rf7#) 33. Rf2 {[%emt 0:01:12]} a5 {[%emt 0:01:39][%cal Ob5b4]} (33... Qxd4 34. Qxd4 Rxd4 35. Rxf7+ Kh8 36. Rxa7 $18) 34. Rd2 $1 {[%emt 0:01:22]} Qc4 {[%emt 0:00:21]} 35. d5 {[%emt 0:00:30]} Qc1+ {[%emt 0:00:01]} (35... Qxf4 36. gxf4 Kg7 37. d6 Kf6) 36. Ka2 {[%emt 0:00:06]} b4 {[%emt 0:00:16]} 37. axb4 {[%emt 0:00:50]} axb4 {[%emt 0:00:01]} 38. Kb3 {[%emt 0:00:30][%cal Od5d6]} (38. Qxb4 Ra7+ 39. Kb3 Qh1) 38... Ra7 $1 {[%emt 0:01:25]} 39. Rd4 {[%emt 0:00:36]} (39. Kxb4 $2 Rb7+ 40. Ka5 Qc5+ 41. Ka6 Qb6#) 39... Qa1 {[%emt 0:00:27]} 40. Rxb4 {[%emt 0:00:27]} (40. Kc2 $11 {keeps the balance.}) 40... Qd1+ $17 {[%emt 0:00:45]} 41. Kc3 {[%emt 0:00:00]} ({Don't go for} 41. Kc4 $2 Rc7+ 42. Qxc7 Qc2+ 43. Kb5 Qxc7 $19) 41... Qxd5 {[%emt 0:00:00]} 42. Qd4 {[%emt 0:00:00]} Qf3+ {[%emt 0:00:00]} 43. Qd3 {[%emt 0:00:00]} Qg2 {[%emt 0:00:00]} 44. Qd4 {[%emt 0:00:00] Prevents Qxh2} Ra8 {[%emt 0:00:00]} 45. Qf4 {[%emt 0:00:00]} Qd5 {[%emt 0:00:00]} (45... Qxh2 46. Qxf7+ Kh8 47. Qf6+ (47. Qxg6 Rf8 $16) 47... Kg8 48. Qxg6+ Kh8 49. Qf6+ Kg8 50. Rg4+ Kh7 51. Qg7#) 46. Rd4 {[%emt 0:00:00]} Qe6 {[%emt 0:00:00]} 47. b3 $2 {[%emt 0:00:00] Loses the game.} (47. Kc2 $17) 47... Qe1+ $19 {[%emt 0:00:00]} 48. Qd2 {[%emt 0:00:00]} Qa1+ {[%emt 0:00:09]} 49. Qb2 $2 {[%emt 0:00:00]} (49. Kd3) 49... Rc8+ {[%emt 0:01:27]} 50. Rc4 {[%emt 0:00:00]} Qa5+ {[%emt 0:00:01]} 51. Kc2 {[%emt 0:00:00]} Re8 {[%emt 0:00:17]} (51... Qf5+ $142 52. Kc3 Rd8) 52. b4 $2 {[%emt 0:03:52]} (52. Kb1) 52... Re2+ {[%emt 0:02:09] Black is clearly winning.} 53. Kd3 {[%emt 0:00:04]} Qd5+ {[%emt 0:00:06]} (53... Rxb2 54. bxa5 Ra2 55. Rc5 $14) 54. Kxe2 {[%emt 0:02:50]} Qg2+ {[%emt 0:00:02] Weighted Error Value: White=0.31/Black=0.09 (flawless)   Loses game:     	White=1     	---        Mistake:       	White=3     	Black=1      Inaccurate:     	White=3     	Black=1      OK:         	White=15    	Black=23     Best:        	White=4     	Black=3      Strong:       	White=2     	Black=1} ({Inferior is} 54... Qxc4+ 55. Kf2 $11) 0-1

[Event "Slovakian ECo-C Extraliga 2024-25"]
[Site "Slovakia"]
[Date "2025.01.18"]
[Round "3.4"]
[White "Durana, Jonas"]
[Black "Roubalik, Jakub"]
[Result "1/2-1/2"]
[Annotator "TA"]
[ECO "C50"]
[WhiteElo "1968"]
[BlackElo "2319"]
[PlyCount "118"]
[EventDate "2024.09.12"]
[EventType "team-tourn"]
[EventCountry "SVK"]
[SourceTitle "playchess.com"]
[Source "ChessBase"]
[SourceQuality "1"]
[TimeControl "5400+30"]

{[%evp 11,118,14,8,0,14,12,11,0,0,0,0,-5,0,1,0,14,1,0,0,2,13,0,9,0,0,0,0,0,0,0,0,0,0,0,0,0,0,0,27,25,20,10,17,16,18,0,0,0,0,0,0,0,0,-23,0,-23,-23,-68,-59,-407,-23,-237,-50,-435,-521,-454,-52,-64,-57,-64,0,-64,-64,-64,-64,-229,-64,-64,-64,-64,-52,-52,-52,-52,0,-52,-52,-52,-52,-72,-52,-62,-65,-72,-52,-78,0,0,0,0,0,-52,0,-52,0,-52,-53,-54,-52]} 1. e4 {[%emt 0:00:01]} e5 {[%emt 0:01:22]} 2. Nf3 {[%emt 0:00:14]} Nc6 {[%emt 0:00:06]} 3. Bc4 {[%emt 0:00:03]} Nf6 {[%emt 0:00:13]} 4. d3 {[%emt 0:00:05]} Bc5 {[%emt 0:01:34]} 5. Nc3 {[%emt 0:00:06]} h6 {[%emt 0:02:54]} 6. a3 {[%emt 0:02:15]} a6 {[%emt 0:02:34]} 7. Be3 {[%emt 0:00:12]} d6 {[%emt 0:10:32]} 8. Bxc5 {[%emt 0:00:07]} dxc5 {[%emt 0:00:03]} 9. h3 {[%emt 0:15:27]} Qd6 {[%emt 0:01:39]} 10. O-O {[%emt 0:02:33]} O-O {[%emt 0:02:08]} 11. Qd2 {[%emt 0:14:41]} b5 {[%emt 0:10:10]} 12. Ba2 {[%emt 0:06:03]} Be6 {[%emt 0:01:06]} 13. Bxe6 {[%emt 0:04:24]} Qxe6 {[%emt 0:00:38]} 14. Ne2 {[%emt 0:05:30][%cal Bc3e2,Be2g3,Bg3f5][%mdl 32]} Rad8 {[%emt 0:08:31]} 15. Qc3 {[%emt 0:02:27]} c4 {[%emt 0:14:03]} 16. Rac1 {[%emt 0:04:57]} Rd7 {[%emt 0:07:45]} 17. Ng3 {[%emt 0:14:05]} Rfd8 {[%emt 0:01:54]} 18. Rfd1 {[%emt 0:06:03]} Kh7 {[%emt 0:10:08]} 19. Rd2 {[%emt 0:03:56]} Nd4 {[%emt 0:05:22]} 20. Nxd4 {[%emt 0:02:25]} Rxd4 {[%emt 0:00:12]} 21. Rcd1 {[%emt 0:01:26]} c5 {[%emt 0:07:33][%cal Ob5b4,Bc7c5,Bc5c4][%mdl 32]} 22. Nf5 {[%emt 0:04:18]} R4d7 {[%emt 0:02:59]} 23. f3 {[%emt 0:02:42]} g6 {[%emt 0:05:59]} 24. Ne3 {[%emt 0:00:20]} cxd3 {[%emt 0:00:25]} 25. Rxd3 {[%emt 0:00:33]} c4 {[%emt 0:00:25]} 26. Rxd7 {[%emt 0:04:06]} Rxd7 {[%emt 0:00:01]} 27. Rxd7 {[%emt 0:00:11]} Nxd7 $11 {[%emt 0:00:02][%mdl 4096] Endgame KQN-KQN} 28. Nd5 {[%emt 0:01:16]} Nf6 {[%emt 0:01:05]} 29. Nxf6+ {[%emt 0:00:36]} Qxf6 {[%emt 0:00:01] KQ-KQ} 30. Kf2 {[%emt 0:01:19]} Qh4+ {[%emt 0:01:23]} 31. Kf1 {[%emt 0:00:37]} Qg5 {[%emt 0:00:23]} 32. Qe1 {[%emt 0:00:42]} h5 {[%emt 0:01:25]} 33. g3 {[%emt 0:01:55]} Qd8 {[%emt 0:00:51]} 34. c3 {[%emt 0:00:43]} Qd3+ {[%emt 0:00:51]} 35. Qe2 $2 {[%emt 0:00:28][%mdl 8192]} (35. Kg2 $1 $15) 35... Qb1+ $2 {[%emt 0:00:17]} (35... Qxe2+ $1 $19 36. Kxe2 h4) 36. Kf2 $2 {[%emt 0:00:55]} (36. Kg2 $11) 36... Qc1 $2 {[%emt 0:00:10]} (36... Qh1 $19 37. Qf1 Qxf1+ (37... Qh2+ 38. Qg2 $15) 38. Kxf1 h4) 37. g4 $2 {[%emt 0:00:43][%mdl 8192]} (37. h4 $15) 37... h4 $19 {[%emt 0:00:57]} 38. Kg2 {[%emt 0:00:13] [#]} Kg7 $2 {[%emt 0:00:24]} (38... Kh6 $1 $19 {White must now prevent ...Kg5.} 39. Kf2 Kg7) 39. Qf2 $15 {[%emt 0:00:44]} Kg8 {[%emt 0:00:45]} 40. Kh2 Kg7 {[%emt 0:00:54]} 41. Kg2 $1 {[%emt 0:00:33]} Qg5 {[%emt 0:00:00]} 42. Kh2 Kh7 {[%emt 0:00:00]} 43. Kh1 $2 {[%emt 0:00:00]} (43. Qe1 $15) 43... Kh6 $2 {[%emt 0:00:00]} (43... Qc1+ $19 44. Kg2 Kg8) 44. Kg2 {[%emt 0:00:00]} a5 {[%emt 0:00:00]} 45. Qe1 {[%emt 0:00:00]} Kg7 {[%emt 0:00:00]} 46. Kf1 {[%emt 0:00:00]} Qd8 {[%emt 0:00:00]} 47. Kg2 {[%emt 0:00:00]} Qg5 {[%emt 0:00:00]} 48. Kf1 $1 {[%emt 0:00:00]} Kf8 {[%emt 0:00:00]} 49. Kg2 {[%emt 0:00:00]} Kg8 {[%emt 0:00:06]} 50. Kf1 {[%emt 0:01:03]} Qd8 {[%emt 0:00:26]} 51. Kg2 {[%emt 0:00:11]} Kg7 {[%emt 0:00:06]} 52. Qf2 {[%emt 0:01:43]} g5 {[%emt 0:01:10]} 53. Qe2 {[%emt 0:01:51] [#]} Qd6 {[%emt 0:00:22]} (53... Qf6 $1 $17) 54. Kf2 $11 {[%emt 0:00:55]} Kg6 {[%emt 0:01:06]} 55. Ke1 {[%emt 0:01:12]} Qb6 {[%emt 0:03:12]} 56. Qf2 {[%emt 0:00:12]} (56. Qf1 $11) 56... Qd6 {[%emt 0:01:35]} (56... Qxf2+ $1 $15 57. Kxf2 Kf6) 57. Qd2 {[%emt 0:00:32]} ({White should play} 57. Qe2 $1 $11) 57... Qb6 {[%emt 0:00:27]} ({Black should play} 57... Qxd2+ $1 $15 58. Kxd2 Kf6) 58. Qf2 {[%emt 0:00:04]} (58. Kf1 $11) 58... Qxf2+ $1 $15 {[%emt 0:00:34]} 59. Kxf2 {[%emt 0:00:01]} a4 {[%emt 0:00:28]} 1/2-1/2

[Event "Slovakian ECo-C Extraliga 2024-25"]
[Site "Slovakia"]
[Date "2025.01.18"]
[Round "3.5"]
[White "Raczek, Krzysztof"]
[Black "Borosova, Zuzana"]
[Result "1-0"]
[Annotator "TA"]
[ECO "B90"]
[WhiteElo "2443"]
[BlackElo "2174"]
[PlyCount "91"]
[EventDate "2024.09.12"]
[EventType "team-tourn"]
[EventCountry "SVK"]
[SourceTitle "playchess.com"]
[Source "ChessBase"]
[SourceQuality "1"]
[TimeControl "5400+30"]

{[%evp 18,91,13,8,47,29,39,35,56,49,76,61,55,61,55,56,67,59,85,85,80,87,86,69,80,75,80,50,68,57,66,65,70,48,39,36,127,140,137,135,216,206,206,206,206,206,774,633,420,359,1460,1433,1256,849,29972,6303,29975,29973,29980,29982,29982,29983,29983,29984,29984,29985,29985,29986,29986,29987,29987,29988,29988,29989,29989,29990]} 1. e4 {[%emt 0:00:06]} c5 {[%emt 0:01:37]} 2. Nf3 {[%emt 0:00:07]} d6 {[%emt 0:00:03]} 3. d4 {[%emt 0:00:27]} cxd4 {[%emt 0:00:47]} 4. Nxd4 {[%emt 0:00:02]} Nf6 {[%emt 0:00:07]} 5. Nc3 {[%emt 0:00:04]} a6 {[%emt 0:00:29]} 6. Be3 {[%emt 0:05:00]} e5 {[%emt 0:00:57]} 7. Nf3 {[%emt 0:00:06]} Be7 {[%emt 0:00:27]} 8. Bc4 {[%emt 0:00:37]} O-O {[%emt 0:00:49]} 9. O-O {[%emt 0:01:43]} Be6 {[%emt 0:01:36]} 10. Bb3 {[%emt 0:00:40]} Bxb3 {[%emt 0:08:09] B90: Sicilian Najdorf: Unusual White 6th moves, 6 Be3 Ng4 and 6 Be3 e5.} 11. axb3 {[%emt 0:00:41]} Nbd7 {[%emt 0:00:06]} 12. Bg5 {[%emt 0:04:26]} Rc8 {[%emt 0:03:48] White is slightly better.} 13. Re1 $1 {[%emt 0:28:31]} Ne8 {[%emt 0:11:32]} 14. Bxe7 $146 {[%emt 0:02:29]} (14. Be3 Nef6 15. Nd2 h6 16. Nf1 Qc7 17. Ng3 Rfd8 18. Nf5 Bf8 19. Qf3 Qc6 20. Rad1 {1-0 Hracek,Z (2555)-Fellman,M (2107) Olympiad-44 Chennai 2022 (1.3)}) 14... Qxe7 {[%emt 0:00:29]} 15. Nd2 {[%emt 0:00:30][%cal Bf3d2,Bd2f1,Bf1e3][%mdl 32]} Nb6 {[%emt 0:08:41]} 16. Nf1 {[%emt 0:01:45]} Qe6 {[%emt 0:04:25]} 17. Ne3 {[%emt 0:02:54]} Nf6 {[%emt 0:02:16]} 18. Qf3 {[%emt 0:03:00]} Rfd8 {[%emt 0:01:20]} 19. Red1 {[%emt 0:00:37]} Rd7 {[%emt 0:03:26]} 20. Rd2 {[%emt 0:06:15]} Rcd8 {[%emt 0:00:38]} 21. Ra5 {[%emt 0:00:51]} g6 {[%emt 0:03:52]} 22. h4 {[%emt 0:03:29]} h5 {[%emt 0:02:04]} 23. Ncd5 {[%emt 0:12:44]} Nbxd5 {[%emt 0:01:36]} 24. Nxd5 {[%emt 0:00:22]} Kg7 {[%emt 0:11:24]} 25. c4 {[%emt 0:02:21][%csl Od5][%cal Bc2c4,Bc4c5][%mdl 32] Strong Square White (d5) White is more active.} Nxd5 {[%emt 0:28:09]} 26. Raxd5 {[%emt 0:00:02]} Qg4 {[%emt 0:02:40] White stays focused until the end.} ({Black should play} 26... Qf6 $1 $14) 27. Qxg4 $16 {[%emt 0:04:25]} hxg4 {[%emt 0:00:02][%mdl 4096] Endgame KRR-KRR} 28. c5 {[%emt 0:00:30]} Kf6 {[%emt 0:00:55]} (28... Rh8 $16 29. Rxe5 (29. cxd6 Kf6 $14) (29. Rxd6 Rc7 $16) 29... Kf6) 29. Rxd6+ {[%emt 0:02:44]} (29. cxd6 Rh8 $11 (29... Ke6 30. Kh2 $11)) 29... Rxd6 {[%emt 0:00:31]} 30. Rxd6+ {[%emt 0:00:01]} ({Resist} 30. cxd6 $6 Ke6 $16) 30... Rxd6 {[%emt 0:02:35]} 31. cxd6 $18 {[%emt 0:18:31] KP-KP. White is a pawn up.} Ke6 $2 {[%emt 0:00:30] [#]} (31... g3 32. f4 (32. fxg3 Ke6 $18) 32... exf4 33. e5+ Ke6 (33... Kxe5 $2 34. d7 $18)) 32. Kh2 $1 {[%emt 0:00:30]} Kxd6 {[%emt 0:00:30]} 33. Kg3 {[%emt 0:00:30]} Kc5 $2 {[%emt 0:00:30]} (33... f5 34. exf5 gxf5) 34. Kxg4 {[%emt 0:00:30]} Kb4 {[%emt 0:00:30]} 35. Kf3 {[%emt 0:00:30] and g4 would now be decisive} Kxb3 {[%emt 0:00:30] [#]} 36. g4 $1 {[%emt 0:00:30] Intending h5 and mate.} Kxb2 {[%emt 0:00:30]} 37. h5 {[%emt 0:00:30] White mates.} gxh5 {[%emt 0:00:30]} 38. gxh5 {[%emt 0:00:30]} a5 {[%emt 0:00:30][%cal Ba6a5,Ba5a4,Ba4a3,Ba3a2][%mdl 32]} 39. h6 {[%emt 0:00:30]} a4 {[%emt 0:00:30]} 40. h7 {[%emt 0:00:30]} a3 {[%emt 0:00:30]} 41. h8=Q {[%emt 0:00:30]} (41. h8=R $2 a2 42. Rb8 a1=Q $19 (42... a1=B $2 {perishes.} 43. Rxb7+ Kc2 44. Ke2 $18)) 41... a2 {[%emt 0:00:30]} 42. Qxe5+ {[%emt 0:00:30]} Kb1 {[%emt 0:00:30]} 43. Qb5+ {[%emt 0:00:30]} Kc2 {[%emt 0:00:30]} 44. Qa4+ {[%emt 0:00:30]} Kb2 {[%emt 0:00:30]} 45. Qb4+ {[%emt 0:00:30]} Kc2 {[%emt 0:00:30]} 46. Qa3 {[%emt 0:00:30] Weighted Error Value: White=0.21 (precise) /Black=0.56  Mistake:       	---       	Black=3      Inaccurate:     	White=1     	Black=2      OK:         	White=5     	Black=6      Best:        	White=2     	Black=1      Strong:       	White=2     	---} 1-0

[Event "Slovakian ECo-C Extraliga 2024-25"]
[Site "Slovakia"]
[Date "2025.01.18"]
[Round "3.5"]
[White "Rigo, Zsolt"]
[Black "Hujbert, Florian"]
[Result "1/2-1/2"]
[Annotator "TA"]
[ECO "B70"]
[WhiteElo "2408"]
[BlackElo "2413"]
[PlyCount "52"]
[EventDate "2024.09.12"]
[EventType "team-tourn"]
[EventCountry "SVK"]
[SourceTitle "playchess.com"]
[Source "ChessBase"]
[SourceQuality "1"]
[TimeControl "5400+30"]

{[%evp 21,52,-6,0,7,0,-28,-25,-21,26,-7,43,46,66,53,56,57,74,95,97,109,85,80,106,97,87,56,80,51,44,50,40,0,0]} 1. e4 {[%emt 0:11:19]} c5 {[%emt 0:00:01]} 2. Nf3 {[%emt 0:00:05]} Nc6 {[%emt 0:21:54]} 3. d4 {[%emt 0:00:03]} cxd4 {[%emt 0:00:04]} 4. Nxd4 {[%emt 0:00:04]} Nf6 {[%emt 0:00:06]} 5. Nc3 {[%emt 0:00:05]} g6 {[%emt 0:00:08]} 6. Be2 {[%emt 0:00:09]} Bg7 {[%emt 0:00:02]} 7. Nb3 {[%emt 0:00:08]} O-O {[%emt 0:00:03]} 8. O-O {[%emt 0:00:02]} d6 {[%emt 0:00:02]} 9. Bg5 {[%emt 0:00:05][%cal Bc1g5,Bg5h4,Bh4g3][%mdl 32]} a6 {[%emt 0:00:02]} 10. Re1 {[%emt 0:00:07]} b5 {[%emt 0:00:04][%cal Bb7b5,Bb5b4][%mdl 32]} 11. Bf1 {[%emt 0:00:06]} h6 {[%emt 0:00:02]} 12. Bh4 {[%emt 0:00:02] B70: Sicilian Dragon: 6 g3 and 6 Be2 (without a later Be3).} Re8 {[%emt 0:00:06]} 13. a4 {[%emt 0:00:03]} b4 {[%emt 0:00:03]} 14. Nd5 {[%emt 0:00:06] Black has an edge.} Nd7 $146 {[%emt 0:00:03]} (14... Nxd5 $142 15. exd5 Na7) (14... g5 15. Bg3 Nxd5 16. exd5 Ne5 17. a5 Ng6 18. Nd4 Qc7 19. Qd2 f5 20. Qd3 Bxd4 21. Qxd4 {1-0 Pastuszko,K (1972)-Duda,A (1830) POL-chT 2nd League 2024 (8.42)}) 15. Rb1 {[%emt 0:00:34][%cal Oa4a5]} g5 {[%emt 0:00:02]} (15... Nb6 $11) 16. Bg3 $14 {[%emt 0:00:02]} e6 {[%emt 0:00:03]} 17. Ne3 {[%emt 0:00:07]} Nde5 {[%emt 0:00:08]} 18. Qh5 {[%emt 0:00:05]} Qf6 {[%emt 0:00:04]} 19. Nd2 {[%emt 0:00:17]} Bb7 {[%emt 0:00:04]} 20. Ndc4 {[%emt 0:00:10]} Bf8 {[%emt 0:00:08]} 21. Rbd1 {[%emt 0:00:03]} Red8 {[%emt 0:00:04]} 22. h4 {[%emt 0:00:05]} (22. b3 {simplifies} Nxc4 23. Nxc4 e5 24. Rd2) 22... Kg7 {[%emt 0:00:04]} 23. Nxe5 {[%emt 0:00:06]} dxe5 {[%emt 0:00:04]} 24. Ng4 {[%emt 0:00:03] White is more active.} Qg6 {[%emt 0:00:17]} 25. Qxg6+ {[%emt 0:00:07]} (25. Bxe5+ $2 {too greedy.} Nxe5 26. Qxg6+ Nxg6 $19) 25... Kxg6 {[%emt 0:00:03]} 26. Rxd8 {[%emt 0:00:15]} (26. Nxe5+ Nxe5 27. Rxd8 (27. Bxe5 Rxd1 28. Rxd1 Bxe4 $11) 27... Rxd8 $11) ({Much weaker is} 26. Bxe5 h5 27. Rxd8 Rxd8 $17) 26... Rxd8 {[%emt 0:00:01] Weighted Error Value: White=0.15 (very precise) /Black=0.14 (very precise)   Mistake:       	---       	Black=2      Inaccurate:     	White=5     	Black=1      OK:         	White=6     	Black=3      Best:        	White=1     	---} 1/2-1/2

[Event "Slovakian ECo-C Extraliga 2024-25"]
[Site "Slovakia"]
[Date "2025.01.18"]
[Round "3.5"]
[White "Motuz, Karol"]
[Black "Striskova, Lucia"]
[Result "1/2-1/2"]
[Annotator "TA"]
[ECO "D37"]
[WhiteElo "2305"]
[BlackElo "2074"]
[PlyCount "64"]
[EventDate "2024.09.12"]
[EventType "team-tourn"]
[EventCountry "SVK"]
[SourceTitle "playchess.com"]
[Source "ChessBase"]
[SourceQuality "1"]
[TimeControl "5400+30"]

{[%evp 9,64,22,37,12,13,19,18,-68,1,-13,-20,-120,123,47,65,61,69,45,45,42,91,47,80,79,81,18,85,72,79,90,104,93,107,73,83,84,81,89,75,81,66,75,80,41,27,0,0,0,0,0,0,0,0,0,0,0,0]} 1. d4 {[%emt 0:00:03]} d5 {[%emt 0:00:27]} 2. c4 {[%emt 0:00:06]} e6 {[%emt 0:00:06]} 3. Nf3 {[%emt 0:00:23]} Nf6 {[%emt 0:00:09]} 4. Nc3 {[%emt 0:01:25]} Be7 {[%emt 0:00:12]} 5. Bf4 {[%emt 0:02:14]} a6 {[%emt 0:02:55]} 6. c5 {[%emt 0:06:11] D37: Queen's Gambit Declined: 5 Bf4.} b6 {[%emt 0:04:06]} 7. b4 {[%emt 0:01:59]} O-O {[%emt 0:00:51]} 8. h3 {[%emt 0:03:15]} (8. a3 $11) 8... Nc6 $146 {[%emt 0:02:59]} (8... a5 $15 9. a3 Ne4) (8... a5 9. a3 Ne4 10. Nxe4 dxe4 11. Ne5 f6 12. Nc4 axb4 13. cxb6 cxb6 14. e3 b5 {0-1 Campos Gambuti,L (2373)-Alvarez Alonso,A (1986) ESP-ch rapid 2019 (1)}) 9. Rb1 {[%emt 0:02:52]} Ne4 {[%emt 0:16:59]} 10. Qc2 {[%emt 0:01:54] [#]} (10. Qc1 $1 $11) 10... Bf6 $2 {[%emt 0:07:31]} (10... e5 $1 $17 {and life is bright. ...Nxc3 is the strong threat.} 11. Nxe4 exf4) 11. e3 {[%emt 0:02:22]} ({Better is} 11. cxb6 $16 Nxd4 12. Nxd4) 11... Nxc3 {[%emt 0:04:49]} 12. Qxc3 {[%emt 0:00:20] A sharp opening} bxc5 {[%emt 0:00:41]} 13. Qxc5 {[%emt 0:04:45]} Bd7 {[%emt 0:00:21]} 14. a3 {[%emt 0:02:28]} Re8 {[%emt 0:02:30]} (14... Be7 $14 {deserves consideration.} 15. Qc3 Bd6) 15. Be2 {[%emt 0:03:17]} e5 {[%emt 0:02:51] Space Advantage White} 16. dxe5 {[%emt 0:03:08]} Nxe5 {[%emt 0:00:07]} 17. O-O {[%emt 0:02:38]} (17. Nxe5 $16 Bxe5 18. Bxe5 (18. Qxd5 $2 Bxf4 19. Bc4 Qe7 $19) 18... Rxe5 19. O-O) 17... c6 {[%emt 0:01:15]} (17... Bb5 $11 {remains equal.} 18. Bxb5 Nxf3+ 19. gxf3 axb5) 18. Nd4 {[%emt 0:02:48]} Ng6 {[%emt 0:08:39] [#]} 19. Bg3 {[%emt 0:04:19][%cal Bf4g3,Bg3h2,Bh2d6][%mdl 32]} (19. Nxc6 Bxc6 20. Bg3 Ba4 $19) 19... Bh4 {[%emt 0:08:04]} 20. Bh2 {[%emt 0:07:10]} ({But not} 20. Nxc6 Qg5 $14) 20... Qf6 {[%emt 0:01:33]} 21. Qd6 {[%emt 0:02:42]} Qxd6 {[%emt 0:00:07]} 22. Bxd6 {[%emt 0:00:02]} Bf6 {[%emt 0:00:25]} 23. Rfd1 {[%emt 0:01:19]} Rec8 {[%emt 0:05:16]} 24. Rdc1 {[%emt 0:09:34]} Nf8 {[%emt 0:05:06]} 25. Rc5 {[%emt 0:09:06] White is much more active.} Bd8 {[%emt 0:04:50] Wards off Ra5} 26. Bxf8 {[%emt 0:09:14]} Kxf8 {[%emt 0:00:14]} 27. Rbc1 {[%emt 0:04:24][%cal Oe2g4] Bg4! would now be deadly.} Bb6 $1 {[%emt 0:00:42] The position is equal.} 28. R5c3 {[%emt 0:00:38]} Bxd4 {[%emt 0:01:53]} 29. exd4 {[%emt 0:00:01]} a5 {[%emt 0:00:39]} 30. b5 {[%emt 0:07:56]} cxb5 {[%emt 0:00:17]} 31. Rxc8+ {[%emt 0:00:25]} Rxc8 {[%emt 0:00:08]} 32. Rxc8+ {[%emt 0:00:22]} Bxc8 {[%emt 0:00:07] Weighted Error Value: White=0.29 (precise) /Black=0.31  Mistake:       	White=4     	Black=4      Inaccurate:     	White=4     	Black=1      OK:         	White=6     	Black=8      Best:        	White=1     	Black=1      Strong:       	---       	Black=1} 1/2-1/2